[Event "Titled Tuesday Blitz November 14 Early 2023"]
[White "Zhigalko, Sergei"]
[Black "Saydaliev, Saidakbar"]
[WhiteFideId "13502956"]
[BlackFideId "14203693"]
[WhiteElo "2899"]
[BlackElo "2761"]
[Result "1-0"]
[Round "6"]
[TimeControl "180+1"]
[Date "2023.11.14"]
[WhiteClock "0:00:03"]
[BlackClock "0:00:02"]
[Board "27"]

1. e4 {[%clk 0:03:00]}  e5 {[%clk 0:02:58]} 2. Nf3 {[%clk 0:03:00]}  Nc6 {[%clk 0:02:59]} 3. Bc4 {[%clk 0:03:00]}  Nf6 {[%clk 0:02:59]} 4. d3 {[%clk 0:03:00]}  Bc5 {[%clk 0:02:59]} 5. O-O {[%clk 0:03:01]}  a6 {[%clk 0:02:59]} 6. Nbd2 {[%clk 0:02:59]}  O-O {[%clk 0:02:51]} 7. h3 {[%clk 0:02:49]}  h6 {[%clk 0:02:41]} 8. Re1 {[%clk 0:02:46]}  Re8 {[%clk 0:02:41]} 9. c3 {[%clk 0:02:44]}  Ba7 {[%clk 0:02:37]} 10. Bb3 {[%clk 0:02:36]}  d6 {[%clk 0:02:36]} 11. Nf1 {[%clk 0:02:36]}  Be6 {[%clk 0:02:37]} 12. Be3 {[%clk 0:02:34]}  d5 {[%clk 0:02:25]} 13. Bxa7 {[%clk 0:02:34]}  Rxa7 {[%clk 0:02:25]} 14. exd5 {[%clk 0:02:14]}  Bxd5 {[%clk 0:02:26]} 15. Ne3 {[%clk 0:02:11]}  Bxf3 {[%clk 0:01:42]} 16. Qxf3 {[%clk 0:02:11]}  Qxd3 {[%clk 0:01:43]} 17. Rad1 {[%clk 0:02:00]}  Qg6 {[%clk 0:01:40]} 18. Nd5 {[%clk 0:01:18]}  Nxd5 {[%clk 0:01:37]} 19. Bxd5 {[%clk 0:01:07]}  Nd8 {[%clk 0:01:25]} 20. Bb3 {[%clk 0:01:00]}  Ra8 {[%clk 0:00:49]} 21. Rd7 {[%clk 0:00:59]}  Rc8 {[%clk 0:00:48]} 22. h4 {[%clk 0:00:32]}  h5 {[%clk 0:00:46]} 23. g3 {[%clk 0:00:20]}  b5 {[%clk 0:00:27]} 24. Bd5 {[%clk 0:00:13]}  c6 {[%clk 0:00:19]} 25. Be4 {[%clk 0:00:12]}  Qg4 {[%clk 0:00:20]} 26. Qd3 {[%clk 0:00:08]}  Ne6 {[%clk 0:00:19]} 27. Bh7+ {[%clk 0:00:04]}  Kh8 {[%clk 0:00:18]} 28. Bf5 {[%clk 0:00:04]}  Nc5 {[%clk 0:00:16]} 29. Qc2 {[%clk 0:00:04]}  Qa4 {[%clk 0:00:15]} 30. Rxf7 {[%clk 0:00:03]}  Qxc2 {[%clk 0:00:14]} 31. Bxc2 {[%clk 0:00:04]}  Rcd8 {[%clk 0:00:15]} 32. Bg6 {[%clk 0:00:03]}  Rd6 {[%clk 0:00:13]} 33. Bxh5 {[%clk 0:00:03]}  g6 {[%clk 0:00:14]} 34. Bg4 {[%clk 0:00:03]}  Rd2 {[%clk 0:00:13]} 35. Rc7 {[%clk 0:00:03]}  Nd3 {[%clk 0:00:13]} 36. Rf1 {[%clk 0:00:03]}  Rf8 {[%clk 0:00:12]} 37. Rxc6 {[%clk 0:00:03]}  Rfxf2 {[%clk 0:00:10]} 38. Rxf2 {[%clk 0:00:03]}  Nxf2 {[%clk 0:00:11]} 39. Rxg6 {[%clk 0:00:03]}  e4 {[%clk 0:00:11]} 40. Bh5 {[%clk 0:00:02]}  e3 {[%clk 0:00:11]} 41. Re6 {[%clk 0:00:02]}  Nh3+ {[%clk 0:00:11]} 42. Kf1 {[%clk 0:00:02]}  Rf2+ {[%clk 0:00:07]} 43. Ke1 {[%clk 0:00:02]}  Rxb2 {[%clk 0:00:08]} 44. Rxe3 {[%clk 0:00:01]}  Rxa2 {[%clk 0:00:08]} 45. Re7 {[%clk 0:00:01]}  Nf2 {[%clk 0:00:08]} 46. Re8+ {[%clk 0:00:01]}  Kg7 {[%clk 0:00:08]} 47. Re6 {[%clk 0:00:02]}  Nd3+ {[%clk 0:00:08]} 48. Kf1 {[%clk 0:00:02]}  a5 {[%clk 0:00:07]} 49. Rg6+ {[%clk 0:00:03]}  Kh7 {[%clk 0:00:07]} 50. Rb6 {[%clk 0:00:03]}  Ne5 {[%clk 0:00:03]} 51. Rxb5 {[%clk 0:00:03]}  Nc4 {[%clk 0:00:03]} 52. Rb7+ {[%clk 0:00:02]}  Kh6 {[%clk 0:00:04]} 53. Be8 {[%clk 0:00:02]}  Ne3+ {[%clk 0:00:04]} 54. Ke1 {[%clk 0:00:02]}  Rg2 {[%clk 0:00:04]} 55. g4 {[%clk 0:00:01]}  Rxg4 {[%clk 0:00:03]} 56. Rb6+ {[%clk 0:00:02]}  Kh7 {[%clk 0:00:03]} 57. h5 {[%clk 0:00:03]}  Rg2 {[%clk 0:00:03]} 58. Ra6 {[%clk 0:00:02]}  Ra2 {[%clk 0:00:02]} 59. Ra7+ {[%clk 0:00:02]}  Kh6 {[%clk 0:00:03]} 60. Ra6+ {[%clk 0:00:03]}  Kh7 {[%clk 0:00:03]} 61. Bg6+ {[%clk 0:00:03]}  Kg7 {[%clk 0:00:04]} 62. Be4 {[%clk 0:00:02]}  Ng2+ {[%clk 0:00:04]} 63. Kd1 {[%clk 0:00:02]}  Ne3+ {[%clk 0:00:04]} 64. Kc1 {[%clk 0:00:03]}  a4 {[%clk 0:00:05]} 65. h6+ {[%clk 0:00:03]}  Kf7 {[%clk 0:00:04]} 66. h7 {[%clk 0:00:03]}  Rh2 {[%clk 0:00:04]} 67. Rxa4 {[%clk 0:00:03]}  Kf6 {[%clk 0:00:04]} 68. Ra8 {[%clk 0:00:03]}  Kg7 {[%clk 0:00:02]} 69. Rg8+ {[%clk 0:00:03]} 1-0


[Site "https://www.chess.com"]

[Event "Titled Tuesday Blitz November 14 Early 2023"]
[White "Timerkhanov, Alexander"]
[Black "Madaminov, Mukhiddin"]
[WhiteFideId "24177938"]
[BlackFideId "14210703"]
[WhiteElo "2704"]
[BlackElo "2881"]
[Result "0-1"]
[Round "6"]
[TimeControl "180+1"]
[Date "2023.11.14"]
[WhiteClock "0:00:32"]
[BlackClock "0:01:42"]
[Board "30"]

1. d4 {[%clk 0:03:00]}  e6 {[%clk 0:03:00]} 2. Nf3 {[%clk 0:02:58]}  Nf6 {[%clk 0:02:59]} 3. g3 {[%clk 0:02:58]}  b5 {[%clk 0:02:53]} 4. Bg2 {[%clk 0:02:56]}  Bb7 {[%clk 0:02:53]} 5. O-O {[%clk 0:02:56]}  Be7 {[%clk 0:02:53]} 6. a4 {[%clk 0:02:55]}  b4 {[%clk 0:02:52]} 7. a5 {[%clk 0:02:55]}  O-O {[%clk 0:02:51]} 8. c4 {[%clk 0:02:49]}  bxc3 {[%clk 0:02:49]} 9. Nxc3 {[%clk 0:02:43]}  Na6 {[%clk 0:02:48]} 10. Re1 {[%clk 0:02:40]}  Ne4 {[%clk 0:02:48]} 11. Bd2 {[%clk 0:02:20]}  Rb8 {[%clk 0:02:45]} 12. Nxe4 {[%clk 0:02:15]}  Bxe4 {[%clk 0:02:43]} 13. Bc3 {[%clk 0:02:15]}  Nb4 {[%clk 0:02:37]} 14. Ne5 {[%clk 0:02:07]}  Bxg2 {[%clk 0:02:37]} 15. Kxg2 {[%clk 0:02:07]}  d6 {[%clk 0:02:26]} 16. Nd3 {[%clk 0:02:06]}  Nxd3 {[%clk 0:02:17]} 17. Qxd3 {[%clk 0:02:07]}  Qd7 {[%clk 0:02:07]} 18. e4 {[%clk 0:02:04]}  Rb5 {[%clk 0:02:04]} 19. d5 {[%clk 0:02:00]}  a6 {[%clk 0:02:04]} 20. Rad1 {[%clk 0:01:55]}  c6 {[%clk 0:01:56]} 21. dxe6 {[%clk 0:01:36]}  Qxe6 {[%clk 0:01:50]} 22. f4 {[%clk 0:01:33]}  Bf6 {[%clk 0:01:46]} 23. Qxd6 {[%clk 0:01:29]}  Bxc3 {[%clk 0:01:45]} 24. bxc3 {[%clk 0:01:23]}  Rb2+ {[%clk 0:01:44]} 25. Kg1 {[%clk 0:01:20]}  Qa2 {[%clk 0:01:42]} 26. Qd4 {[%clk 0:00:59]}  Rg2+ {[%clk 0:01:42]} 27. Kf1 {[%clk 0:00:32]}  Rxh2 {[%clk 0:01:42]} 0-1


[Site "https://www.chess.com"]

[Event "Titled Tuesday Blitz November 14 Early 2023"]
[White "Beerdsen, Thomas"]
[Black "Yaran, Siar"]
[WhiteFideId "1030108"]
[BlackFideId "6323006"]
[WhiteElo "2848"]
[BlackElo "2678"]
[Result "1-0"]
[Round "6"]
[TimeControl "180+1"]
[Date "2023.11.14"]
[WhiteClock "0:00:10"]
[BlackClock "0:00:04"]
[Board "31"]

1. e4 {[%clk 0:03:00]}  e5 {[%clk 0:02:55]} 2. d4 {[%clk 0:03:00]}  exd4 {[%clk 0:02:54]} 3. Qxd4 {[%clk 0:03:01]}  Nc6 {[%clk 0:02:54]} 4. Qd3 {[%clk 0:03:02]}  Nf6 {[%clk 0:02:50]} 5. Nc3 {[%clk 0:03:02]}  Bb4 {[%clk 0:02:39]} 6. Bd2 {[%clk 0:03:02]}  O-O {[%clk 0:02:29]} 7. O-O-O {[%clk 0:03:02]}  Re8 {[%clk 0:02:30]} 8. Nge2 {[%clk 0:03:02]}  d5 {[%clk 0:02:17]} 9. Bg5 {[%clk 0:02:46]}  dxe4 {[%clk 0:02:02]} 10. Qxd8 {[%clk 0:02:44]}  Nxd8 {[%clk 0:01:49]} 11. Bxf6 {[%clk 0:02:43]}  gxf6 {[%clk 0:01:49]} 12. Nd5 {[%clk 0:02:44]}  Bd6 {[%clk 0:01:26]} 13. Nxf6+ {[%clk 0:02:43]}  Kf8 {[%clk 0:01:27]} 14. Nxe8 {[%clk 0:02:43]}  Kxe8 {[%clk 0:01:28]} 15. Nc3 {[%clk 0:02:41]}  f5 {[%clk 0:01:28]} 16. Bc4 {[%clk 0:02:29]}  Nc6 {[%clk 0:01:25]} 17. Rhe1 {[%clk 0:02:20]}  Kf8 {[%clk 0:01:22]} 18. f3 {[%clk 0:02:17]}  exf3 {[%clk 0:01:07]} 19. gxf3 {[%clk 0:02:18]}  Ne5 {[%clk 0:01:07]} 20. Be2 {[%clk 0:02:01]}  a6 {[%clk 0:01:06]} 21. Kb1 {[%clk 0:01:34]}  Bd7 {[%clk 0:01:04]} 22. Nd5 {[%clk 0:01:30]}  Bc6 {[%clk 0:01:00]} 23. f4 {[%clk 0:01:27]}  Ng6 {[%clk 0:01:00]} 24. Bh5 {[%clk 0:01:22]}  Kf7 {[%clk 0:00:55]} 25. c4 {[%clk 0:01:12]}  Rc8 {[%clk 0:00:30]} 26. b3 {[%clk 0:01:09]}  b5 {[%clk 0:00:24]} 27. cxb5 {[%clk 0:00:58]}  axb5 {[%clk 0:00:23]} 28. Re3 {[%clk 0:00:54]}  Bb7 {[%clk 0:00:17]} 29. Nc3 {[%clk 0:00:47]}  Bc6 {[%clk 0:00:16]} 30. Ne2 {[%clk 0:00:44]}  Ra8 {[%clk 0:00:15]} 31. Nd4 {[%clk 0:00:43]}  Bd7 {[%clk 0:00:13]} 32. Rde1 {[%clk 0:00:40]}  Kf6 {[%clk 0:00:12]} 33. Ne6 {[%clk 0:00:35]}  Nxf4 {[%clk 0:00:10]} 34. Nxf4 {[%clk 0:00:35]}  Bxf4 {[%clk 0:00:11]} 35. Re7 {[%clk 0:00:36]}  Bc6 {[%clk 0:00:11]} 36. R1e6+ {[%clk 0:00:29]}  Kg5 {[%clk 0:00:09]} 37. Rxc6 {[%clk 0:00:29]}  Kxh5 {[%clk 0:00:08]} 38. Rc5 {[%clk 0:00:20]}  Bd6 {[%clk 0:00:06]} 39. Rxf5+ {[%clk 0:00:20]}  Kg6 {[%clk 0:00:07]} 40. Ref7 {[%clk 0:00:18]}  b4 {[%clk 0:00:07]} 41. h4 {[%clk 0:00:17]}  h5 {[%clk 0:00:07]} 42. R7f6+ {[%clk 0:00:17]}  Kg7 {[%clk 0:00:07]} 43. Re6 {[%clk 0:00:18]}  Rh8 {[%clk 0:00:06]} 44. Kc2 {[%clk 0:00:10]}  Ra8 {[%clk 0:00:07]} 45. Kb1 {[%clk 0:00:08]}  Rh8 {[%clk 0:00:07]} 46. Re2 {[%clk 0:00:07]}  Kg6 {[%clk 0:00:07]} 47. Rf3 {[%clk 0:00:08]}  Ra8 {[%clk 0:00:04]} 48. Rg2+ {[%clk 0:00:08]}  Kh6 {[%clk 0:00:03]} 49. Rf6+ {[%clk 0:00:09]}  Kh7 {[%clk 0:00:04]} 50. Rf5 {[%clk 0:00:10]}  Kh6 {[%clk 0:00:03]} 51. Rgg5 {[%clk 0:00:10]}  Re8 {[%clk 0:00:03]} 52. Rxh5+ {[%clk 0:00:11]}  Kg6 {[%clk 0:00:04]} 53. Rhg5+ {[%clk 0:00:11]}  Kh6 {[%clk 0:00:04]} 54. Rf6+ {[%clk 0:00:11]}  Kh7 {[%clk 0:00:05]} 55. Rf1 {[%clk 0:00:03]}  Re2 {[%clk 0:00:05]} 56. Rf7+ {[%clk 0:00:04]}  Kh6 {[%clk 0:00:05]} 57. Rf6+ {[%clk 0:00:04]}  Kh7 {[%clk 0:00:05]} 58. Rf1 {[%clk 0:00:05]}  Rh2 {[%clk 0:00:05]} 59. h5 {[%clk 0:00:04]}  Be7 {[%clk 0:00:03]} 60. Rf7+ {[%clk 0:00:03]}  Kh6 {[%clk 0:00:03]} 61. Rxe7 {[%clk 0:00:04]}  Kxg5 {[%clk 0:00:03]} 62. Rxc7 {[%clk 0:00:04]}  Rxh5 {[%clk 0:00:03]} 63. Rc5+ {[%clk 0:00:05]}  Kg4 {[%clk 0:00:03]} 64. Rxh5 {[%clk 0:00:06]}  Kxh5 {[%clk 0:00:04]} 65. Kc2 {[%clk 0:00:06]}  Kg4 {[%clk 0:00:05]} 66. Kd3 {[%clk 0:00:07]}  Kf3 {[%clk 0:00:06]} 67. Kc4 {[%clk 0:00:08]}  Ke2 {[%clk 0:00:06]} 68. Kxb4 {[%clk 0:00:09]}  Kd3 {[%clk 0:00:04]} 69. Kb5 {[%clk 0:00:10]} 1-0


[Site "https://www.chess.com"]

[Event "Titled Tuesday Blitz November 14 Early 2023"]
[White "mind1mover"]
[Black "Maltsevskaya, Aleksandra"]
[BlackFideId "24174041"]
[WhiteElo "2848"]
[BlackElo "2671"]
[Result "0-1"]
[Round "6"]
[TimeControl "180+1"]
[Date "2023.11.14"]
[WhiteClock "0:00:00"]
[BlackClock "0:00:19"]
[Board "32"]

1. Nf3 {[%clk 0:03:00]}  Nf6 {[%clk 0:02:59]} 2. b3 {[%clk 0:03:01]}  b6 {[%clk 0:03:00]} 3. g3 {[%clk 0:03:01]}  Bb7 {[%clk 0:03:00]} 4. Bg2 {[%clk 0:03:01]}  g6 {[%clk 0:03:00]} 5. Bb2 {[%clk 0:03:02]}  Bg7 {[%clk 0:03:01]} 6. O-O {[%clk 0:03:02]}  O-O {[%clk 0:03:01]} 7. e3 {[%clk 0:03:02]}  c5 {[%clk 0:02:57]} 8. Qe2 {[%clk 0:02:59]}  d6 {[%clk 0:02:56]} 9. d4 {[%clk 0:02:56]}  a5 {[%clk 0:02:55]} 10. a4 {[%clk 0:02:48]}  d5 {[%clk 0:02:49]} 11. Rd1 {[%clk 0:02:45]}  Nc6 {[%clk 0:02:29]} 12. Na3 {[%clk 0:02:41]}  Ne4 {[%clk 0:02:24]} 13. Nb5 {[%clk 0:02:40]}  Rc8 {[%clk 0:02:04]} 14. c4 {[%clk 0:02:39]}  e6 {[%clk 0:01:51]} 15. cxd5 {[%clk 0:02:37]}  exd5 {[%clk 0:01:51]} 16. dxc5 {[%clk 0:02:37]}  Bxb2 {[%clk 0:01:43]} 17. Qxb2 {[%clk 0:02:38]}  bxc5 {[%clk 0:01:33]} 18. Nd2 {[%clk 0:02:37]}  Qe7 {[%clk 0:01:31]} 19. Nxe4 {[%clk 0:02:35]}  dxe4 {[%clk 0:01:31]} 20. Nd6 {[%clk 0:02:35]}  Rb8 {[%clk 0:01:26]} 21. Qc3 {[%clk 0:01:50]}  Nb4 {[%clk 0:00:44]} 22. Qxc5 {[%clk 0:01:39]}  Nd3 {[%clk 0:00:43]} 23. Rxd3 {[%clk 0:01:28]}  exd3 {[%clk 0:00:44]} 24. Nxb7 {[%clk 0:01:28]}  Rxb7 {[%clk 0:00:40]} 25. Qxe7 {[%clk 0:01:20]}  Rxe7 {[%clk 0:00:39]} 26. Rd1 {[%clk 0:01:20]}  Rd8 {[%clk 0:00:38]} 27. Bc6 {[%clk 0:01:15]}  Rc7 {[%clk 0:00:36]} 28. Bb5 {[%clk 0:01:11]}  Rc3 {[%clk 0:00:35]} 29. Bc4 {[%clk 0:01:09]}  Kg7 {[%clk 0:00:34]} 30. Rd2 {[%clk 0:01:03]}  f5 {[%clk 0:00:24]} 31. Kg2 {[%clk 0:01:02]}  g5 {[%clk 0:00:24]} 32. h3 {[%clk 0:01:02]}  h5 {[%clk 0:00:22]} 33. g4 {[%clk 0:01:03]}  fxg4 {[%clk 0:00:20]} 34. hxg4 {[%clk 0:01:03]}  h4 {[%clk 0:00:21]} 35. Kh3 {[%clk 0:01:04]}  Kf6 {[%clk 0:00:21]} 36. f4 {[%clk 0:01:03]}  Re8 {[%clk 0:00:20]} 37. fxg5+ {[%clk 0:00:45]}  Kxg5 {[%clk 0:00:20]} 38. Kg2 {[%clk 0:00:31]}  Rxe3 {[%clk 0:00:20]} 39. Rd1 {[%clk 0:00:32]}  Rc2+ {[%clk 0:00:19]} 40. Kg1 {[%clk 0:00:32]}  d2 {[%clk 0:00:20]} 41. Kf2 {[%clk 0:00:30]}  Re5 {[%clk 0:00:17]} 42. Bd3 {[%clk 0:00:27]}  Rb2 {[%clk 0:00:17]} 43. Bf5 {[%clk 0:00:22]}  Re1 {[%clk 0:00:17]} 44. Rxe1 {[%clk 0:00:21]}  dxe1=Q+ {[%clk 0:00:18]} 45. Kxe1 {[%clk 0:00:22]}  h3 {[%clk 0:00:18]} 46. Kf1 {[%clk 0:00:22]}  Rxb3 {[%clk 0:00:19]} 47. Be4 {[%clk 0:00:23]}  Kxg4 {[%clk 0:00:18]} 48. Kg1 {[%clk 0:00:00]}  Kg3 {[%clk 0:00:19]} 0-1


[Site "https://www.chess.com"]

[Event "Titled Tuesday Blitz November 14 Early 2023"]
[White "Alexandre, Anne Shopie Elizabeth"]
[Black "Brunner, Nicolas"]
[WhiteFideId "11902418"]
[BlackFideId "620246"]
[WhiteElo "2840"]
[BlackElo "2598"]
[Result "1-0"]
[Round "6"]
[TimeControl "180+1"]
[Date "2023.11.14"]
[WhiteClock "0:00:26"]
[BlackClock "0:00:00"]
[Board "34"]

1. d4 {[%clk 0:03:00]}  d5 {[%clk 0:02:59]} 2. c4 {[%clk 0:03:01]}  e6 {[%clk 0:02:58]} 3. Nf3 {[%clk 0:03:01]}  Nf6 {[%clk 0:02:58]} 4. Nc3 {[%clk 0:03:01]}  Be7 {[%clk 0:02:59]} 5. g3 {[%clk 0:03:00]}  O-O {[%clk 0:02:54]} 6. Bg2 {[%clk 0:03:00]}  dxc4 {[%clk 0:02:54]} 7. Ne5 {[%clk 0:03:00]}  c5 {[%clk 0:02:50]} 8. dxc5 {[%clk 0:02:59]}  Qxd1+ {[%clk 0:02:50]} 9. Nxd1 {[%clk 0:03:00]}  Bxc5 {[%clk 0:02:48]} 10. O-O {[%clk 0:02:57]}  Nd5 {[%clk 0:02:39]} 11. Nxc4 {[%clk 0:02:55]}  Nc6 {[%clk 0:02:39]} 12. Nc3 {[%clk 0:02:53]}  Nxc3 {[%clk 0:02:33]} 13. bxc3 {[%clk 0:02:52]}  Bd7 {[%clk 0:02:32]} 14. Rb1 {[%clk 0:02:49]}  b6 {[%clk 0:02:32]} 15. Rd1 {[%clk 0:02:45]}  Be8 {[%clk 0:02:27]} 16. Nd6 {[%clk 0:02:24]}  Bxd6 {[%clk 0:02:17]} 17. Rxd6 {[%clk 0:02:24]}  Rc8 {[%clk 0:02:18]} 18. Ba3 {[%clk 0:02:21]}  Ne7 {[%clk 0:01:36]} 19. Rd3 {[%clk 0:02:06]}  Rc7 {[%clk 0:01:36]} 20. Rd8 {[%clk 0:02:04]}  Ba4 {[%clk 0:01:29]} 21. Rd4 {[%clk 0:01:51]}  b5 {[%clk 0:01:11]} 22. Bd6 {[%clk 0:01:49]}  Rd7 {[%clk 0:01:10]} 23. Bc5 {[%clk 0:01:46]}  Rc7 {[%clk 0:01:00]} 24. Bd6 {[%clk 0:01:42]}  Rd7 {[%clk 0:01:00]} 25. Bb4 {[%clk 0:01:42]}  Rc7 {[%clk 0:00:53]} 26. Rb2 {[%clk 0:01:39]}  Rfc8 {[%clk 0:00:46]} 27. Rbd2 {[%clk 0:01:39]}  f6 {[%clk 0:00:19]} 28. Rd7 {[%clk 0:01:25]}  Nf5 {[%clk 0:00:17]} 29. Bb7 {[%clk 0:01:14]}  Rxd7 {[%clk 0:00:14]} 30. Rxd7 {[%clk 0:01:15]}  Rc4 {[%clk 0:00:10]} 31. Bf3 {[%clk 0:01:06]}  a6 {[%clk 0:00:07]} 32. Ra7 {[%clk 0:01:03]}  Bd1 {[%clk 0:00:06]} 33. Rxa6 {[%clk 0:01:00]}  Kf7 {[%clk 0:00:07]} 34. Ra7+ {[%clk 0:00:59]}  Kg6 {[%clk 0:00:07]} 35. Kf1 {[%clk 0:00:58]}  h6 {[%clk 0:00:05]} 36. Ke1 {[%clk 0:00:58]}  Bc2 {[%clk 0:00:05]} 37. e3 {[%clk 0:00:55]}  Bd3 {[%clk 0:00:05]} 38. Kd2 {[%clk 0:00:54]}  Be4 {[%clk 0:00:05]} 39. Be2 {[%clk 0:00:53]}  Rc8 {[%clk 0:00:05]} 40. Bxb5 {[%clk 0:00:51]}  Rd8+ {[%clk 0:00:05]} 41. Rd7 {[%clk 0:00:51]}  Ra8 {[%clk 0:00:04]} 42. a4 {[%clk 0:00:51]}  h5 {[%clk 0:00:04]} 43. h3 {[%clk 0:00:49]}  h4 {[%clk 0:00:04]} 44. gxh4 {[%clk 0:00:44]}  Nxh4 {[%clk 0:00:04]} 45. c4 {[%clk 0:00:44]}  Nf3+ {[%clk 0:00:04]} 46. Kc3 {[%clk 0:00:42]}  Ne5 {[%clk 0:00:05]} 47. Rd4 {[%clk 0:00:40]}  Bf3 {[%clk 0:00:05]} 48. c5 {[%clk 0:00:40]}  Rh8 {[%clk 0:00:04]} 49. h4 {[%clk 0:00:39]}  Rc8 {[%clk 0:00:04]} 50. a5 {[%clk 0:00:36]}  Bd5 {[%clk 0:00:04]} 51. f4 {[%clk 0:00:35]}  Nc6 {[%clk 0:00:04]} 52. Bxc6 {[%clk 0:00:33]}  Rxc6 {[%clk 0:00:04]} 53. e4 {[%clk 0:00:32]}  Ba2 {[%clk 0:00:04]} 54. Rd6 {[%clk 0:00:31]}  Rxd6 {[%clk 0:00:02]} 55. cxd6 {[%clk 0:00:32]}  Kf7 {[%clk 0:00:03]} 56. a6 {[%clk 0:00:31]}  Bb1 {[%clk 0:00:02]} 57. Kd4 {[%clk 0:00:30]}  f5 {[%clk 0:00:00]} 58. d7 {[%clk 0:00:26]} 1-0


[Site "https://www.chess.com"]

[Event "Titled Tuesday Blitz November 14 Early 2023"]
[White "Atakhan, Abtin"]
[Black "Aravindh, Chithambaram VR."]
[WhiteFideId "22502203"]
[BlackFideId "5072786"]
[WhiteElo "2739"]
[BlackElo "2944"]
[Result "1-0"]
[Round "6"]
[TimeControl "180+1"]
[Date "2023.11.14"]
[WhiteClock "0:00:05"]
[BlackClock "0:00:01"]
[Board "36"]

1. c4 {[%clk 0:03:00]}  g6 {[%clk 0:02:52]} 2. g3 {[%clk 0:03:00]}  Bg7 {[%clk 0:02:53]} 3. Bg2 {[%clk 0:03:01]}  Nf6 {[%clk 0:02:54]} 4. Nc3 {[%clk 0:03:01]}  O-O {[%clk 0:02:55]} 5. Nf3 {[%clk 0:03:02]}  c6 {[%clk 0:02:56]} 6. O-O {[%clk 0:03:01]}  d6 {[%clk 0:02:56]} 7. d3 {[%clk 0:02:59]}  Nbd7 {[%clk 0:02:57]} 8. Rb1 {[%clk 0:03:00]}  Qc7 {[%clk 0:02:58]} 9. b4 {[%clk 0:03:00]}  e5 {[%clk 0:02:59]} 10. b5 {[%clk 0:03:00]}  Re8 {[%clk 0:03:00]} 11. Nd2 {[%clk 0:02:58]}  Nc5 {[%clk 0:03:00]} 12. a4 {[%clk 0:02:58]}  h5 {[%clk 0:02:59]} 13. Ba3 {[%clk 0:02:56]}  h4 {[%clk 0:02:58]} 14. Bxc5 {[%clk 0:02:54]}  dxc5 {[%clk 0:02:59]} 15. bxc6 {[%clk 0:02:55]}  bxc6 {[%clk 0:02:59]} 16. Nb3 {[%clk 0:02:51]}  h3 {[%clk 0:02:56]} 17. Bf3 {[%clk 0:02:42]}  Bf8 {[%clk 0:02:56]} 18. Qc1 {[%clk 0:02:21]}  Rb8 {[%clk 0:02:49]} 19. Qe3 {[%clk 0:02:18]}  Kh7 {[%clk 0:02:17]} 20. Bh1 {[%clk 0:01:59]}  Ng4 {[%clk 0:02:01]} 21. Qf3 {[%clk 0:01:50]}  Qe7 {[%clk 0:01:08]} 22. Nxc5 {[%clk 0:01:20]}  Rxb1 {[%clk 0:00:43]} 23. Nxb1 {[%clk 0:01:21]}  f5 {[%clk 0:00:34]} 24. Qxc6 {[%clk 0:01:11]}  Rd8 {[%clk 0:00:16]} 25. Nb3 {[%clk 0:01:11]}  e4 {[%clk 0:00:16]} 26. Na5 {[%clk 0:00:35]}  Bd7 {[%clk 0:00:08]} 27. Qb7 {[%clk 0:00:25]}  exd3 {[%clk 0:00:05]} 28. exd3 {[%clk 0:00:24]}  Bxa4 {[%clk 0:00:04]} 29. Nc3 {[%clk 0:00:22]}  Be8 {[%clk 0:00:03]} 30. Re1 {[%clk 0:00:15]}  Qxb7 {[%clk 0:00:01]} 31. Nxb7 {[%clk 0:00:16]}  Rb8 {[%clk 0:00:02]} 32. Bd5 {[%clk 0:00:13]}  Bd7 {[%clk 0:00:02]} 33. d4 {[%clk 0:00:13]}  Bb4 {[%clk 0:00:02]} 34. Rc1 {[%clk 0:00:12]}  Re8 {[%clk 0:00:02]} 35. Nc5 {[%clk 0:00:12]}  Bxc3 {[%clk 0:00:02]} 36. Nxd7 {[%clk 0:00:11]}  Bxd4 {[%clk 0:00:02]} 37. c5 {[%clk 0:00:05]}  Bxf2+ {[%clk 0:00:02]} 38. Kh1 {[%clk 0:00:04]}  Be3 {[%clk 0:00:03]} 39. Rf1 {[%clk 0:00:02]}  Nf2+ {[%clk 0:00:03]} 40. Rxf2 {[%clk 0:00:02]}  Bxf2 {[%clk 0:00:04]} 41. Nf6+ {[%clk 0:00:03]}  Kh6 {[%clk 0:00:04]} 42. Nxe8 {[%clk 0:00:04]}  Bxc5 {[%clk 0:00:04]} 43. Nc7 {[%clk 0:00:03]}  a5 {[%clk 0:00:05]} 44. Bc6 {[%clk 0:00:03]}  g5 {[%clk 0:00:04]} 45. Ne6 {[%clk 0:00:03]}  Bb6 {[%clk 0:00:05]} 46. Bb5 {[%clk 0:00:02]}  g4 {[%clk 0:00:05]} 47. Bd3 {[%clk 0:00:02]}  Kg6 {[%clk 0:00:05]} 48. Nf8+ {[%clk 0:00:02]}  Kf7 {[%clk 0:00:04]} 49. Nd7 {[%clk 0:00:03]}  Bd4 {[%clk 0:00:03]} 50. Bxf5 {[%clk 0:00:02]}  a4 {[%clk 0:00:04]} 51. Bc2 {[%clk 0:00:03]}  a3 {[%clk 0:00:04]} 52. Bb3+ {[%clk 0:00:03]}  Ke7 {[%clk 0:00:05]} 53. Nb8 {[%clk 0:00:03]}  Kd6 {[%clk 0:00:05]} 54. Na6 {[%clk 0:00:03]}  Bb6 {[%clk 0:00:05]} 55. Nb4 {[%clk 0:00:02]}  Kc5 {[%clk 0:00:05]} 56. Nc2 {[%clk 0:00:03]}  Bd8 {[%clk 0:00:05]} 57. Kg1 {[%clk 0:00:03]}  Bf6 {[%clk 0:00:03]} 58. Kf2 {[%clk 0:00:04]}  Bb2 {[%clk 0:00:03]} 59. Ke2 {[%clk 0:00:03]}  Kd6 {[%clk 0:00:03]} 60. Kd3 {[%clk 0:00:03]}  Ke5 {[%clk 0:00:04]} 61. Ne3 {[%clk 0:00:02]}  Kf6 {[%clk 0:00:03]} 62. Nxg4+ {[%clk 0:00:02]}  Kg5 {[%clk 0:00:04]} 63. Nf2 {[%clk 0:00:03]}  Be5 {[%clk 0:00:03]} 64. Ke4 {[%clk 0:00:03]}  Bc7 {[%clk 0:00:03]} 65. Kf3 {[%clk 0:00:02]}  Bb6 {[%clk 0:00:02]} 66. Nxh3+ {[%clk 0:00:03]}  Kf6 {[%clk 0:00:03]} 67. Nf4 {[%clk 0:00:03]}  Ke5 {[%clk 0:00:03]} 68. Ne2 {[%clk 0:00:03]}  Bd8 {[%clk 0:00:03]} 69. g4 {[%clk 0:00:03]}  Bh4 {[%clk 0:00:03]} 70. Nc3 {[%clk 0:00:02]}  Kd4 {[%clk 0:00:01]} 71. Nb5+ {[%clk 0:00:03]}  Kc5 {[%clk 0:00:02]} 72. Nxa3 {[%clk 0:00:03]}  Kb4 {[%clk 0:00:03]} 73. Nc2+ {[%clk 0:00:03]}  Kxb3 {[%clk 0:00:03]} 74. Nd4+ {[%clk 0:00:04]}  Kc4 {[%clk 0:00:04]} 75. Nf5 {[%clk 0:00:04]}  Bd8 {[%clk 0:00:04]} 76. h4 {[%clk 0:00:05]}  Kd5 {[%clk 0:00:05]} 77. g5 {[%clk 0:00:04]}  Ke6 {[%clk 0:00:04]} 78. Kg4 {[%clk 0:00:04]}  Kf7 {[%clk 0:00:05]} 79. h5 {[%clk 0:00:04]}  Ba5 {[%clk 0:00:04]} 80. Nd6+ {[%clk 0:00:04]}  Kg7 {[%clk 0:00:04]} 81. Kf5 {[%clk 0:00:04]}  Bd2 {[%clk 0:00:03]} 82. Ne4 {[%clk 0:00:05]}  Be3 {[%clk 0:00:03]} 83. h6+ {[%clk 0:00:04]}  Kh7 {[%clk 0:00:02]} 84. Nf6+ {[%clk 0:00:04]}  Kh8 {[%clk 0:00:03]} 85. Ng4 {[%clk 0:00:03]}  Bc1 {[%clk 0:00:03]} 86. Kg6 {[%clk 0:00:02]}  Bd2 {[%clk 0:00:02]} 87. Ne5 {[%clk 0:00:02]}  Bc3 {[%clk 0:00:01]} 88. Nf7+ {[%clk 0:00:03]}  Kg8 {[%clk 0:00:02]} 89. h7+ {[%clk 0:00:03]}  Kf8 {[%clk 0:00:03]} 90. h8=Q+ {[%clk 0:00:04]}  Bxh8 {[%clk 0:00:02]} 91. Nxh8 {[%clk 0:00:05]}  Kg8 {[%clk 0:00:01]} 92. Nf7 {[%clk 0:00:05]} 1-0


[Site "https://www.chess.com"]